bitfinex/quotes_ETHUSD_20241004
["timestamp","ask_amount","ask_price","bid_price","bid_amount"]
[1728061700959,0.8165,2441.3,2441.1,4.09648]
[1728061701262,4.9125,2441.5,2441.1,4.09648]
[1728061701465,4.91247,2441.5,2441.0,4.09666]
[1728061701645,4.09601,2441.4,2441.0,8.19325]
[1728061701977,4.91234,2441.5,2441.1,4.09648]
[1728061702131,4.91234,2441.5,2441.0,4.09659]
[1728061702338,4.09603,2441.4,2441.0,4.09659]
[1728061704073,4.91241,2441.5,2441.0,8.19315]
[1728061704402,4.09601,2441.4,2440.8,4.09692]
[1728061704687,4.09601,2441.4,2440.9,4.09679]
[1728061704851,4.0962,2441.3,2440.9,4.09679]
[1728061705047,4.09601,2441.4,2440.9,4.09679]
[1728061705291,4.91235,2441.5,2441.0,4.0966]
[1728061705477,4.09607,2441.4,2441.0,4.50622]
[1728061705678,4.09607,2441.4,2441.0,8.60282]
[1728061706192,4.09607,2441.4,2441.0,4.50622]
[1728061706402,4.09607,2441.4,2440.9,4.09674]
[1728061706692,8.19218,2441.4,2440.9,4.09674]
[1728061706855,8.19222,2441.4,2440.9,4.09674]
[1728061707199,8.19219,2441.4,2440.9,4.09672]
[1728061707496,3.0,2441.7,2440.6,4.09726]
[1728061707497,4.09648,2441.2,2440.6,4.09726]
[1728061707654,4.09658,2441.1,2440.7,4.09709]
[1728061708054,4.853,2441.3,2440.9,4.09684]
[1728061708471,4.09639,2441.2,2440.8,4.09701]
[1728061708790,8.94929,2441.3,2440.8,8.19393]
[1728061708991,8.94929,2441.3,2440.8,8.19387]
[1728061709197,4.09635,2441.2,2440.8,4.09692]
[1728061709488,4.09634,2441.2,2440.8,4.09692]
[1728061709652,4.09653,2441.1,2440.7,4.09716]
[1728061709849,0.8243,2441.0,2440.5,4.86076]
[1728061710074,4.92104,2441.0,2440.6,4.09725]
[1728061710467,0.8243,2441.0,2440.7,4.09717]
[1728061710683,4.09626,2441.3,2440.9,4.09678]
[1728061710684,0.8258,2441.2,2440.9,4.09678]
[1728061710866,4.09652,2441.1,2440.7,4.09705]
[1728061711796,4.73891932,2441.1,2440.7,4.09705]
[1728061712108,0.64239932,2441.1,2440.8,4.09698]
[1728061712292,0.64239932,2441.1,2440.9,4.09681]
[1728061713172,0.64239932,2441.1,2440.9,8.19357]
[1728061713372,0.64239932,2441.1,2440.9,4.09676]
[1728061714112,0.64239932,2441.1,2440.8,4.09699]
[1728061714679,0.64239932,2441.1,2440.9,4.09684]
[1728061716284,0.64239932,2441.1,2440.8,4.09701]
[1728061717073,0.64239932,2441.1,2440.8,4.09554232]
[1728061717482,0.64239932,2441.1,2440.7,4.09707]
[1728061717819,4.73898932,2441.1,2440.5,4.86068]
[1728061717968,4.09668,2441.0,2440.6,4.09726]
[1728061718790,0.7911,2440.9,2440.6,4.09726]
[1728061719976,0.7911,2440.9,2440.6,8.19453]
[1728061720177,0.7911,2440.9,2440.6,4.09726]
[1728061720377,0.7911,2440.9,2440.4,5.8414975]
[1728061720610,4.88797,2440.9,2440.5,4.09749]
[1728061720984,0.7911,2440.9,2440.5,4.09749]
[1728061721214,4.88797,2440.9,2440.5,4.09749]
[1728061721508,5.90632283,2440.9,2440.5,4.09749]
[1728061721715,1.80945283,2440.9,2440.6,4.09734]
[1728061724313,1.80945283,2440.9,2440.3,4.09782]
[1728061724314,4.09729,2440.7,2440.3,4.09782]
[1728061724679,4.09729,2440.7,2440.2,11.398]
[1728061724680,0.8228,2440.5,2440.2,11.398]
[1728061724881,0.8228,2440.5,2440.1,0.7771]
[1728061725075,4.92034,2440.5,2440.1,4.09818]
[1728061725282,5.822112,2440.5,2440.1,4.09818]
[1728061726013,4.09724,2440.7,2440.3,0.7728]
[1728061726213,4.09724,2440.7,2440.3,4.87061]
[1728061726628,3.0,2441.0,2440.6,4.09731]
[1728061726629,1.3265,2441.0,2440.6,4.09731]
[1728061726917,6.08539283,2441.0,2440.6,4.09731]
[1728061727677,4.09704,2440.8,2440.4,4.09765]
[1728061727909,4.09694,2440.9,2440.5,4.09751]
[1728061728077,8.19393,2440.9,2440.5,4.09751]
[1728061728505,8.19391,2440.9,2440.5,4.09751]
[1728061728704,9.33205911,2440.9,2440.5,4.09751]
[1728061729114,4.09708,2440.8,2440.4,4.09766]
[1728061730308,0.7615,2440.7,2440.4,4.09766]
[1728061734904,0.7615,2440.7,2440.5,4.0975]
[1728061735108,0.8175,2441.0,2440.7,4.09716]
[1728061735962,0.64239932,2441.1,2440.8,4.09701]
[1728061736526,0.64239932,2441.1,2440.9,4.09684]
[1728061736716,0.8022,2441.2,2440.9,4.09684]
[1728061737816,4.89858,2441.2,2440.8,4.09688]
[1728061738011,8.99503,2441.2,2440.8,4.09688]
[1728061738263,4.09653,2441.1,2440.7,4.0971]
[1728061738760,5.798073,2441.2,2440.8,4.09699]
[1728061740054,4.89857,2441.2,2440.8,4.09699]
[1728061741250,0.8022,2441.2,2440.9,4.09682]
[1728061742165,4.89857,2441.2,2440.8,4.09699]
[1728061742525,0.8022,2441.2,2440.8,4.09699]
[1728061742755,0.8022,2441.2,2440.9,4.09684]
[1728061744136,4.89854,2441.2,2440.8,0.8012]
[1728061744371,1.87241069,2441.2,2440.9,4.09682]
[1728061746400,0.8022,2441.2,2441.0,4.09664]
[1728061746616,5.80344692,2441.4,2441.0,4.09664]
[1728061746617,2.45976692,2441.4,2441.1,4.09648]
[1728061746759,0.7524,2441.4,2441.1,4.09648]
[1728061747398,2.45976692,2441.4,2440.9,4.09678]
[1728061747595,4.34228669,2441.3,2440.9,4.09678]
[1728061747800,0.7502,2441.1,2440.8,4.09699]
[1728061748294,0.7502,2441.1,2440.9,4.09676]
[1728061748679,0.7502,2441.1,2440.8,4.09699]
[1728061749069,0.7502,2441.1,2440.8,4.09695]
[1728061749279,0.7502,2441.1,2440.9,4.09683]
[1728061749603,0.7502,2441.1,2440.8,4.09695]
[1728061750397,0.7502,2441.1,2440.9,4.09682]
[1728061750780,0.7502,2441.1,2440.8,4.09695]
[1728061751196,0.7502,2441.1,2440.8,4.09693]
[1728061751391,0.7502,2441.1,2440.9,4.09682]
[1728061751581,0.7502,2441.1,2440.8,4.09686]
[1728061751767,0.7502,2441.1,2440.8,8.19373]
[1728061752381,0.7502,2441.1,2440.9,4.0968]
[1728061752579,0.7502,2441.1,2440.8,4.09699]
[1728061753100,4.09675,2441.0,2440.6,4.0972]
[1728061753402,0.7839,2440.9,2440.6,4.0972]
[1728061754169,0.7839,2440.9,2440.7,4.09718]
[1728061754411,0.7839,2440.9,2440.7,4.09709]
[1728061754576,0.7839,2440.9,2440.6,4.09728]
[1728061754798,0.7839,2440.9,2440.6,8.19452]
[1728061755002,0.7839,2440.9,2440.6,8.19449]
[1728061755203,0.7839,2440.9,2440.7,4.09713]
[1728061755593,2.49126692,2441.1,2440.8,4.09701]
[1728061755789,2.49126692,2441.1,2440.9,4.09676]
[1728061755790,0.7839,2441.1,2440.9,4.09676]
[1728061756217,6.04952361,2441.3,2440.9,4.09676]
[1728061756434,1.70736692,2441.3,2440.9,4.09676]
[1728061756590,5.80356692,2441.3,2440.9,4.09683]
[1728061756795,0.7824,2441.2,2440.9,4.0968]
[1728061756991,2.48976692,2441.2,2440.9,4.0968]
[1728061757994,0.7824,2441.2,2440.9,4.0968]
[1728061758199,0.7824,2441.2,2441.0,4.09664]
[1728061759093,1.70736692,2441.3,2441.0,4.09664]
[1728061759298,2.50546692,2441.4,2441.1,4.09648]
[1728061759499,2.15417483,2441.4,2441.2,4.09618]
[1728061759817,0.64240056,2441.6,2441.3,0.8256]
[1728061760004,0.64240056,2441.6,2441.5,4.92144]
[1728061760314,0.767,2442.1,2441.8,8.19054]
[1728061760518,0.767,2442.1,2441.8,4.09524]
[1728061760519,0.64218457,2442.0,2441.8,4.09524]
[1728061760734,0.64218457,2442.0,2441.8,4.0952]
[1728061760937,0.767,2442.1,2441.8,4.0952]
[1728061761234,1.70736692,2442.3,2442.0,4.09486]
[1728061761446,0.87169313,2442.3,2442.0,4.09486]
[1728061761739,4.86174,2442.2,2441.7,4.09542]
[1728061761948,0.767,2441.8,2441.3,4.92174]
[1728061762241,4.09568,2441.6,2441.2,4.09633]
[1728061762395,4.09559,2441.7,2441.0,4.92214]
[1728061762396,4.914977,2441.5,2441.0,4.92214]
[1728061762598,0.819127,2441.5,2441.1,4.09636]
[1728061763096,0.819127,2441.5,2441.2,4.09624]
[1728061763300,4.09558,2441.7,2441.2,4.09624]
[1728061764127,4.09558,2441.7,2441.3,4.09617]
[1728061770520,4.09567,2441.6,2441.2,4.09626]
[1728061770721,4.09552,2441.7,2441.3,4.09615]
[1728061771029,8.19113,2441.7,2441.2,4.09626]
[1728061771242,0.895813,2441.6,2441.2,4.09626]
[1728061771557,4.991623,2441.6,2441.2,4.09634]
[1728061771758,0.895813,2441.6,2441.2,8.1926]
[1728061772255,4.991513,2441.6,2441.2,8.19253]
[1728061772416,4.991513,2441.6,2441.2,4.09626]
[1728061773213,5.0045593,2441.5,2441.1,4.09648]
[1728061773412,0.8242,2441.4,2441.1,4.09648]
[1728061777369,0.8242,2441.4,2440.9,4.09672]
[1728061777370,4.9203,2441.4,2440.9,4.09672]
[1728061777673,4.9203,2441.4,2441.0,4.0966]
[1728061778033,4.9203,2441.4,2440.9,4.09672]
[1728061778232,0.99248593,2441.3,2440.9,4.09672]
[1728061778673,0.99248593,2441.3,2440.9,8.19349]
[1728061779137,0.99248593,2441.3,2440.9,4.09672]
[1728061779957,0.99248593,2441.3,2440.9,8.19347]
[1728061780198,0.99248593,2441.3,2441.0,4.09665]
[1728061781283,0.8242,2441.4,2441.1,4.09649]
[1728061781661,0.8242,2441.4,2441.0,4.09665]
[1728061781991,4.92027,2441.4,2441.0,8.19323]
[1728061782388,4.92027,2441.4,2441.0,8.19317]
[1728061782597,6.08349462,2441.4,2441.0,4.09658]
[1728061783912,4.0962,2441.3,2440.9,4.09682]
[1728061784298,4.0962,2441.3,2440.9,4.09676]
[1728061785717,0.782,2441.1,2440.6,8.0535]
[1728061785925,0.782,2441.1,2440.6,11.3972]
[1728061785926,4.09668,2441.0,2440.6,11.3972]
[1728061786078,4.994214,2441.0,2440.6,11.3972]
[1728061786432,4.994214,2441.0,2440.3,3.0]
[1728061786433,0.782,2440.9,2440.3,4.09783]
[1728061786719,4.09717,2440.8,2440.3,4.09783]
[1728061786883,4.09717,2440.8,2440.4,4.09767]
[1728061787478,1.3631,2440.7,2440.3,1.7436642]
[1728061787685,4.09753,2440.5,2440.0,44.09826]
[1728061787909,4.09736,2440.6,2440.1,4.09805]
[1728061788243,5.05314,2440.6,2440.1,4.09805]
[1728061788881,4.09759,2440.5,2440.1,4.09805]
[1728061789628,4.09768,2440.4,2440.0,45.8419542]
[1728061789783,5.05314,2440.6,2440.1,4.09817]
[1728061790014,4.91028,2440.7,2440.3,4.09775]
[1728061790248,0.8131,2440.7,2440.2,5.8415942]
[1728061790548,0.8131,2440.7,2440.4,5.8411942]
[1728061791227,4.91029,2440.7,2440.3,4.92103]
[1728061791620,4.91029,2440.7,2440.2,1.7436642]
[1728061791815,4.91029,2440.7,2440.2,5.8415742]
[1728061792016,4.91029,2440.7,2440.2,9.9395042]
[1728061792447,4.91029,2440.7,2440.2,5.8415742]
[1728061792849,0.8131,2440.7,2440.3,4.09778]
[1728061793460,4.91036,2440.7,2440.2,5.8416042]
[1728061793752,4.91036,2440.7,2440.3,4.09776]
[1728061794257,4.91036,2440.7,2440.2,5.8416042]
[1728061794459,4.09735,2440.6,2440.2,5.8416042]
[1728061795756,4.09735,2440.6,2440.1,4.09817]
[1728061795958,1.304136,2440.7,2440.0,40.7579]
[1728061796114,4.0976,2440.5,2440.1,4.09809]
[1728061796540,4.0976,2440.5,2440.0,40.7579]
[1728061796541,4.0976,2440.5,2440.0,44.85622]
[1728061797156,4.09737,2440.6,2440.1,4.09815]
[1728061797455,4.09754,2440.5,2440.1,4.09815]
[1728061798234,4.09737,2440.6,2440.1,4.09815]
[1728061798563,4.588567,2440.5,2440.1,4.09815]
[1728061799737,0.491047,2440.5,2440.1,4.09815]
[1728061799947,4.09737,2440.6,2440.2,4.09801]
[1728061800476,0.8131,2440.7,2440.4,4.09768]
[1728061800769,0.8131,2440.7,2440.3,5.8413842]
[1728061800971,0.8131,2440.7,2440.4,4.09761]
[1728061801141,4.92163,2440.9,2440.4,4.89361]
[1728061801341,0.901833,2440.8,2440.4,4.89361]
[1728061801543,4.92163,2440.9,2440.5,4.0975]
[1728061801787,0.8247,2440.9,2440.5,4.0975]
[1728061801931,0.8159,2441.1,2440.7,1.7436642]
[1728061802269,0.8159,2441.1,2440.6,4.09734]
[1728061802270,4.91241,2441.1,2440.6,4.09734]
[1728061802490,9.00901,2441.1,2440.6,4.09734]
[1728061802634,4.91241,2441.1,2440.6,4.09734]
[1728061803036,0.8159,2441.1,2440.6,4.09734]
[1728061803333,4.91243,2441.1,2440.6,4.09724]
[1728061803555,5.44386655,2441.1,2440.6,4.09724]
[1728061803764,5.44386655,2441.1,2440.4,4.89357]
[1728061803765,4.09679,2441.0,2440.4,4.89357]
[1728061803942,4.09679,2441.0,2440.0,51.07895208]
[1728061803943,0.8159,2440.7,2440.2,4.87798]
[1728061804142,0.8159,2440.7,2440.3,4.09785]
[1728061804530,0.8159,2440.7,2440.4,4.09767]
[1728061805154,0.8159,2440.7,2440.3,4.09782]
[1728061805347,0.53143655,2441.1,2440.6,4.09735]
[1728061805348,0.7904,2441.0,2440.6,4.09735]
[1728061805580,4.88711,2441.0,2440.6,4.09735]
[1728061806637,4.09686,2440.9,2440.5,4.09748]
[1728061807078,4.88711,2441.0,2440.5,4.09748]
[1728061807387,4.88711,2441.0,2440.6,4.09735]
[1728061807681,0.7904,2441.0,2440.6,4.92252]
[1728061807839,4.09648,2441.2,2440.7,4.09715]
[1728061808040,4.91428,2441.2,2440.8,4.09695]
[1728061808241,4.91428,2441.2,2440.7,4.09717]
[1728061808471,4.09683,2441.0,2440.6,4.09734]
[1728061808688,0.7706,2440.9,2440.4,4.87407]
[1728061808891,4.86756,2440.9,2440.5,4.09748]
[1728061809239,4.86756,2440.9,2440.3,4.09772]
[1728061809444,4.86756,2440.9,2440.4,4.09767]
[1728061810670,4.86756,2440.9,2440.4,4.09757]
[1728061810876,4.86756,2440.9,2440.4,8.19514]
[1728061811195,4.09719,2440.7,2440.3,4.09776]
[1728061811685,1.667037,2440.9,2440.4,4.09767]
[1728061811686,4.09702,2440.8,2440.4,4.09767]
[1728061811863,4.09702,2440.8,2440.3,8.19548]
[1728061812263,4.09718,2440.7,2440.3,4.09772]
[1728061812485,8.19417,2440.8,2440.3,4.09772]
[1728061812687,4.09724,2440.7,2440.3,4.09772]
[1728061813097,4.09724,2440.7,2440.3,8.19549]
[1728061813298,5.0831507,2440.8,2440.3,4.09772]
[1728061813505,5.0831507,2440.8,2440.4,4.09767]
[1728061814316,4.09719,2440.7,2440.3,4.09782]
[1728061814885,4.09735,2440.6,2440.2,4.90329]
[1728061815207,4.09722,2440.7,2440.2,4.90326]
[1728061815409,0.7603,2440.2,2440.0,40.0]
[1728061815579,4.09866,2439.9,2439.4,4.85936]
[1728061815778,0.7603,2440.2,2439.5,4.09905]
[1728061815779,4.09845,2440.0,2439.5,4.09905]
[1728061816112,4.09845,2440.0,2439.5,4.09917]
[1728061816113,4.09861,2439.9,2439.5,4.09917]
[1728061816416,4.85844,2440.2,2439.4,0.76]
[1728061816574,4.85844,2440.2,2439.8,4.09869]
[1728061816919,4.85834,2440.2,2439.8,4.09869]
[1728061817082,4.85834,2440.2,2439.8,8.19731]
[1728061817285,0.7603,2440.2,2439.8,8.19731]
[1728061817481,4.85093,2440.4,2439.8,4.85862]
[1728061817805,4.85093,2440.4,2440.0,4.09835]
[1728061818011,1.81879669,2440.4,2440.0,4.09835]
[1728061818316,4.09789,2440.3,2439.8,8.95716]
[1728061818480,4.09789,2440.3,2439.9,4.09848]
[1728061818686,5.91650669,2440.4,2439.9,4.09848]
[1728061819214,10.01432669,2440.4,2439.9,4.09848]
[1728061819421,1.37932788,2440.3,2439.9,4.09848]
[1728061820202,5.91650669,2440.4,2439.9,4.09848]
[1728061820616,1.81879669,2440.4,2440.0,4.09826]
[1728061820936,0.7532,2440.4,2440.0,4.09826]
[1728061821237,0.7532,2440.4,2440.1,4.09817]
[1728061821823,4.09753,2440.5,2440.1,4.09817]
[1728061822029,0.64261843,2440.4,2440.1,4.09817]
[1728061822631,0.64261843,2440.4,2440.1,4.09816]
[1728061822797,0.64261843,2440.4,2440.1,8.19632]
[1728061823140,0.64261843,2440.4,2440.2,4.09794]
[1728061823303,0.64261843,2440.4,2440.2,4.87334]
[1728061823503,0.64261843,2440.4,2440.2,4.87332]
[1728061823690,0.64261843,2440.4,2440.2,8.97124]
[1728061823891,0.64261843,2440.4,2440.3,4.09785]
[1728061824129,0.64261843,2440.4,2440.2,4.87332]
[1728061824529,0.64261843,2440.4,2440.3,4.09785]
[1728061825504,1.70736692,2440.9,2440.3,4.09785]
[1728061825505,4.09686,2440.9,2440.3,4.09785]
[1728061825709,4.09686,2440.9,2440.4,4.09753]
[1728061825918,0.64250936,2440.6,2440.5,4.09748]
[1728061826411,0.64250936,2440.6,2440.5,4.78398397]
[1728061826919,0.64250936,2440.6,2440.5,5.58058397]
[1728061828780,4.87246,2441.2,2440.6,4.09719]
[1728061829072,0.64242955,2440.8,2440.6,8.1946]
[1728061829259,4.09666,2441.1,2440.6,4.09726]
[1728061829467,0.7761,2441.2,2440.5,4.09749]
[1728061829468,4.584036,2441.0,2440.5,4.09749]
[1728061829632,0.6424494,2440.8,2440.5,4.09749]
[1728061830054,0.6424494,2440.8,2440.3,0.79]
[1728061830055,5.5465994,2440.8,2440.4,4.09754]
[1728061830952,1.4495494,2440.8,2440.4,8.19511]
[1728061831362,1.4495494,2440.8,2440.5,4.0975]
[1728061831635,0.6424494,2440.8,2440.6,4.09726]
[1728061831835,0.6424494,2440.8,2440.6,4.506986]
[1728061832468,0.6424494,2440.8,2440.6,4.09726]
[1728061834778,0.6424494,2440.8,2440.6,8.19453]
[1728061834960,0.6424494,2440.8,2440.6,4.09726]
[1728061835578,0.6424494,2440.8,2440.6,4.09725]
[1728061836234,0.6424494,2440.8,2440.6,8.19449]
[1728061838047,0.6424494,2440.8,2440.6,4.09724]
[1728061838248,0.6424494,2440.8,2440.6,8.19449]
[1728061838446,0.6424494,2440.8,2440.6,4.09724]
[1728061839097,0.6424494,2440.8,2440.6,8.1945]
[1728061839256,0.6424494,2440.8,2440.6,4.09724]
[1728061841996,0.6424494,2440.8,2440.5,4.09749]
[1728061843265,0.6424494,2440.8,2440.5,4.09744]
[1728061843503,0.6424494,2440.8,2440.5,8.19489]
[1728061844403,0.6424494,2440.8,2440.6,4.09731]
[1728061845498,0.6424494,2440.8,2440.7,4.09718]
[1728061846195,0.6424494,2440.8,2440.5,4.09741]
[1728061846358,4.7394694,2440.8,2440.4,4.09765]
[1728061846555,4.7394694,2440.8,2440.5,4.09739]
[1728061846556,0.6424494,2440.8,2440.5,4.09739]
[1728061847498,0.6424494,2440.8,2440.3,4.88781]
[1728061847499,0.6424494,2440.8,2440.3,0.79]
[1728061847658,0.6424494,2440.8,2440.5,4.09741]
[1728061848553,0.6424494,2440.8,2440.6,4.09733]
[1728061849502,0.6424494,2440.8,2440.5,4.09741]
[1728061850685,0.6424494,2440.8,2440.3,0.79]
[1728061850686,0.6424494,2440.8,2440.7,4.09718]
[1728061851760,0.6424494,2440.8,2440.6,4.86941]
[1728061852392,0.6424494,2440.8,2440.7,4.09718]
[1728061852561,0.6424494,2440.8,2440.6,4.86941]
[1728061852762,0.6424494,2440.8,2440.6,8.96666]
[1728061853163,0.6424494,2440.8,2440.6,4.86935]
[1728061853358,0.6424494,2440.8,2440.6,0.7721]
[1728061853563,0.6424494,2440.8,2440.6,4.86943]
[1728061854265,0.6424494,2440.8,2440.6,4.86937]
[1728061855117,0.6424494,2440.8,2440.6,4.86936]
[1728061855405,0.6424494,2440.8,2440.7,4.09718]
[1728061857661,0.6424494,2440.8,2440.7,4.93018]
[1728061863935,0.6424494,2440.8,2440.6,4.09734]
[1728061864136,1.4100494,2440.8,2440.4,4.09756]
[1728061864301,1.4100494,2440.8,2440.3,0.7652]
[1728061864499,1.4100494,2440.8,2440.0,0.35227273]
[1728061864500,4.86539,2440.4,2440.0,0.35227273]
[1728061864698,1.42857283,2440.4,2440.0,0.35227273]
[1728061864921,1.74433825,2440.5,2440.0,0.35227273]
[1728061864922,4.91799,2440.1,2440.0,0.35227273]
[1728061865332,0.8198,2440.1,2440.0,0.35227273]
[1728061866107,2.49656692,2440.4,2440.0,0.35227273]
[1728061866296,0.7892,2440.4,2440.0,0.35227273]
[1728061866495,0.7892,2440.4,2440.0,4.45061273]
[1728061867494,0.7892,2440.4,2440.1,4.09815]
[1728061867700,0.7892,2440.4,2440.2,4.09792]
[1728061868135,2.51706692,2440.6,2440.2,4.09792]
[1728061868434,2.51706692,2440.6,2440.3,4.09784]
[1728061868600,2.7934528,2440.8,2440.0,0.35227273]
[1728061868601,3.15951632,2440.8,2440.4,4.09758]
[1728061869546,3.15951632,2440.8,2440.4,8.19516]
[1728061869725,3.15951632,2440.8,2440.4,4.09758]
[1728061869922,7.25653632,2440.8,2440.4,4.09754]
[1728061870147,3.15951632,2440.8,2440.4,4.09754]
[1728061870461,3.15951632,2440.8,2440.4,8.19514]
[1728061870746,7.25653632,2440.8,2440.4,4.09754]
[1728061870952,8.60697629,2440.8,2440.4,4.09754]
[1728061871259,8.60697629,2440.8,2440.3,4.09783]
[1728061871955,4.09737,2440.6,2440.2,4.09794]
[1728061872114,0.8174,2440.5,2440.2,4.09794]
[1728061873030,0.8174,2440.5,2440.2,8.19585]
[1728061874024,0.8174,2440.5,2440.3,4.09784]
[1728061874913,4.09733,2440.7,2440.5,4.09747]
[1728061874914,0.7602,2440.7,2440.5,4.09747]
[1728061875344,0.7602,2440.7,2440.5,4.09743]
[1728061875854,0.7602,2440.7,2440.4,4.09767]
[1728061876428,0.7602,2440.7,2440.5,4.0975]
[1728061877143,1.48088663,2440.7,2440.4,4.09767]
[1728061877322,0.7602,2440.7,2440.4,4.09756]
[1728061878023,0.7602,2440.7,2440.5,4.09751]
[1728061878361,0.7602,2440.7,2440.5,4.09749]
[1728061879974,4.85747,2440.7,2440.2,4.09791]
[1728061880273,0.7602,2440.7,2440.3,4.09771]
[1728061880467,0.72072863,2440.6,2440.3,4.09771]
[1728061880760,6.56481692,2440.7,2440.3,4.09771]
[1728061880961,6.56481692,2440.7,2440.3,8.1955]
[1728061881262,0.7602,2440.7,2440.5,4.0974]
[1728061881449,0.7602,2440.7,2440.6,4.09735]
[1728061881836,0.7602,2440.7,2440.2,4.09801]
[1728061882070,0.7602,2440.7,2440.5,4.0975]
[1728061882362,0.7602,2440.7,2440.2,4.78836296]
[1728061882363,0.6424494,2440.8,2440.7,4.09718]
[1728061884588,0.6424494,2440.8,2440.6,4.09733]
[1728061886479,0.6424494,2440.8,2440.5,4.09748]
[1728061886770,0.6424494,2440.8,2440.6,4.09727]
[1728061887445,0.6424494,2440.8,2440.7,4.09718]
[1728061888783,0.7568,2440.7,2440.1,0.84920599]
[1728061888965,4.09788,2440.3,2440.0,0.35227273]
[1728061889784,4.85446,2440.5,2440.0,0.35227273]
[1728061889785,4.09809,2440.2,2440.0,0.35227273]
[1728061890279,0.7958,2440.1,2440.0,0.35227273]
[1728061890576,4.89399,2440.1,2440.0,0.35227273]
[1728061890938,0.7958,2440.1,2440.0,0.35227273]
[1728061895842,14.48687463,2440.1,2440.0,0.35227273]
[1728061896045,13.31679172,2440.1,2440.0,0.35227273]
[1728061896284,15.89735124,2440.1,2440.0,0.35227273]
[1728061896641,15.36006723,2440.1,2440.0,0.35227273]
[1728061897141,12.77950771,2440.1,2440.0,0.35227273]
[1728061897338,4.92216,2439.4,2439.3,0.38548951]
[1728061897568,9.60619274,2439.4,2439.3,0.38548951]
[1728061899989,13.15619274,2439.4,2439.3,0.38548951]
[1728061900577,9.374299,2439.4,2439.3,0.38548951]
[1728061903484,8.824299,2439.4,2439.3,0.38548951]
[1728061905317,13.15619274,2439.4,2439.3,0.38548951]
[1728061905899,57.16412684,2439.4,2439.3,0.02409309]
[1728061906212,8.42607,2438.8,2438.7,0.41870629]
[1728061906508,13.46059474,2438.8,2438.7,0.41870629]
[1728061908913,14.01192483,2438.8,2438.7,0.41870629]
[1728061909109,13.77252283,2438.8,2438.7,0.41870629]
[1728061910115,13.22119274,2438.8,2438.7,0.41870629]
[1728061916299,4.10155,2438.1,2438.0,0.45192308]
[1728061916499,12.23844374,2438.1,2438.0,0.45192308]
[1728061917601,8.45655,2438.1,2438.0,0.45074346]
[1728061917777,4.10142,2438.2,2438.0,0.45074346]
[1728061917983,4.10142,2438.2,2438.0,1.24624346]
[1728061917984,4.10155,2438.1,2438.0,1.24624346]
[1728061918181,4.10142,2438.2,2438.0,1.24624346]
[1728061918675,8.20291,2438.2,2438.0,1.24624346]
[1728061918905,4.10142,2438.2,2438.0,1.24624346]
[1728061919815,4.10155,2438.1,2438.0,0.45074346]
[1728061920015,8.832292,2438.1,2438.0,0.45074346]
[1728061920737,2.10911927,2438.7,2438.0,0.45074346]
[1728061921026,4.10007,2439.0,2438.0,0.45074346]
[1728061921027,4.10155,2438.1,2438.0,0.45074346]
[1728061921407,7.10155,2438.1,2438.0,0.45074346]
[1728061921979,7.65155,2438.1,2438.0,0.45074346]
[1728061922310,9.28373537,2438.1,2438.0,0.45074346]
[1728061922876,10.07973537,2438.1,2438.0,0.45074346]
[1728061923621,13.86162911,2438.1,2438.0,0.45074346]
[1728061924215,10.07973537,2438.1,2438.0,0.45074346]
[1728061924579,13.86162911,2438.1,2438.0,0.45074346]
[1728061924781,14.43962587,2438.1,2438.0,0.45074346]
[1728061926117,18.75962587,2438.1,2438.0,0.19720026]
[1728061927417,10.65773213,2438.1,2438.0,0.19720026]
[1728061927722,13.86162911,2438.1,2438.0,0.19720026]
[1728061930814,13.31162911,2438.1,2438.0,0.19720026]
[1728061932003,13.86162911,2438.1,2438.0,0.19720026]
[1728061935539,8.47193,2437.4,2437.3,0.48513986]
[1728061935741,12.25382374,2437.4,2437.3,0.48513986]
[1728061936297,8.47193,2437.4,2437.3,0.48513986]
[1728061936508,7.65273,2437.4,2437.3,0.48513986]
[1728061937932,11.43462374,2437.4,2437.3,0.48513986]
[1728061938126,12.98834611,2437.4,2437.3,0.48513986]
[1728061939513,13.80944611,2437.4,2437.3,0.48513986]
[1728061940360,18.13844611,2437.4,2437.3,0.48513986]
[1728061940568,18.66309075,2437.4,2437.3,0.48513986]
[1728061940735,18.13844611,2437.4,2437.3,0.48513986]
[1728061940936,8.43684,2436.8,2436.7,0.51835664]
[1728061941156,13.06241774,2436.8,2436.7,0.51835664]
[1728061941458,8.497424,2436.8,2436.7,0.51835664]
[1728061941819,12.27931774,2436.8,2436.7,0.51835664]
[1728061942562,13.03941774,2436.8,2436.7,0.51835664]
[1728061947421,7.65492,2436.1,2436.0,0.55157343]
[1728061947670,8.42842,2436.1,2436.0,0.55157343]
[1728061948921,7.65492,2436.1,2436.0,0.55157343]
[1728061949125,7.10492,2436.1,2436.0,0.55157343]
[1728061949324,3.0,2436.1,2436.0,0.55157343]
[1728061950219,3.6438148,2436.1,2436.0,0.55157343]
[1728061951022,7.7487348,2436.1,2436.0,0.55157343]
[1728061951275,8.93408328,2436.1,2436.0,0.55157343]
[1728061952466,9.48408328,2436.1,2436.0,0.55157343]
[1728061952676,9.48408328,2436.1,2435.3,0.58479021]
[1728061952677,4.10542,2435.8,2435.3,0.58479021]
[1728061952975,11.43799374,2435.4,2435.3,0.58479021]
[1728061953670,12.20389374,2435.4,2435.3,0.58479021]
[1728061956381,31.45333703,2435.4,2435.3,0.36549387]
[1728061956585,35.50684997,2435.4,2435.3,0.36549387]
[1728061956796,20.17416168,2435.4,2435.3,0.36549387]
[1728061956964,16.12064874,2435.4,2435.3,0.36549387]
[1728061957169,16.12064874,2435.4,2434.7,1.38530699]
[1728061957170,4.10711,2434.8,2434.7,0.61800699]
[1728061957466,12.20280374,2434.8,2434.7,0.61800699]
[1728061958162,11.43900374,2434.8,2434.7,0.61800699]
[1728061958801,3.0,2434.8,2434.7,0.61800699]
[1728061959108,4.10612,2435.4,2434.8,0.8285]